[Event "*** Titled Tuesday Blitz"]
[Site "Chess.com"]
[Date "2020.03.03"]
[Round "3"]
[White "mortngabriel"]
[Black "AndrewMaco"]
[Result "0-1"]
[WhiteElo "2404"]
[BlackElo "2670"]
[TimeControl "180+1"]
[EndTime "9:29:15 PST"]
[Termination "AndrewMaco won on time"]

1. d4 {[%clk 0:03:00.9]} 1... Nf6 {[%clk 0:02:59.6]} 2. Nf3 {[%clk 0:03:00.6]}
2... e6 {[%clk 0:02:59.3]} 3. g3 {[%clk 0:03:00.6]} 3... d5 {[%clk 0:02:59.6]}
4. Bg2 {[%clk 0:03:00.4]} 4... Be7 {[%clk 0:03:00.5]} 5. O-O {[%clk 0:03:00.6]}
5... O-O {[%clk 0:03:01.4]} 6. c4 {[%clk 0:03:01.2]} 6... dxc4 {[%clk
0:03:02.3]} 7. Qc2 {[%clk 0:03:01.3]} 7... a6 {[%clk 0:03:02.6]} 8. a4 {[%clk
0:03:01.6]} 8... c5 {[%clk 0:03:02.4]} 9. Rd1 {[%clk 0:02:58.1]} 9... Nc6 {[%clk
0:03:02.1]} 10. dxc5 {[%clk 0:02:48.8]} 10... Nb4 {[%clk 0:03:02.1]} 11. Qd2
{[%clk 0:02:29.7]} 11... Qxd2 {[%clk 0:02:47.2]} 12. Nbxd2 {[%clk 0:02:22.9]}
12... Rd8 {[%clk 0:02:38.7]} 13. Rf1 {[%clk 0:01:57.4]} 13... Bxc5 {[%clk
0:02:30.2]} 14. Nxc4 {[%clk 0:01:57.1]} 14... Nc2 {[%clk 0:02:30.3]} 15. Rb1
{[%clk 0:01:53.5]} 15... b5 {[%clk 0:02:30.3]} 16. Nfe5 {[%clk 0:01:46.3]} 16...
Nd5 {[%clk 0:02:30]} 17. Nc6 {[%clk 0:01:39.6]} 17... Re8 {[%clk 0:02:27.4]} 18.
axb5 {[%clk 0:01:30.1]} 18... axb5 {[%clk 0:02:28.3]} 19. Na3 {[%clk 0:01:31]}
19... Nxa3 {[%clk 0:02:21.1]} 20. bxa3 {[%clk 0:01:30.9]} 20... Bb7 {[%clk
0:02:21.4]} 21. Rxb5 {[%clk 0:01:27.7]} 21... Bxf2+ {[%clk 0:02:15.1]} 22. Kxf2
{[%clk 0:01:22.2]} 22... Bxc6 {[%clk 0:02:16]} 23. Rc5 {[%clk 0:01:21.6]} 23...
Ra6 {[%clk 0:02:13.5]} 24. Bd2 {[%clk 0:01:10.8]} 24... Ne7 {[%clk 0:02:13.3]}
25. Bxc6 {[%clk 0:01:02.8]} 25... Nxc6 {[%clk 0:02:14.2]} 26. Rfc1 {[%clk
0:00:58.7]} 26... Ne7 {[%clk 0:02:08.2]} 27. Bb4 {[%clk 0:00:54.2]} 27... f6
{[%clk 0:02:04.6]} 28. e4 {[%clk 0:00:49.5]} 28... Ng6 {[%clk 0:01:52.8]} 29.
Rc7 {[%clk 0:00:45]} 29... Raa8 {[%clk 0:01:48.6]} 30. Ke3 {[%clk 0:00:34.8]}
30... Ne5 {[%clk 0:01:46.6]} 31. h3 {[%clk 0:00:34.6]} 31... Rad8 {[%clk
0:01:43.2]} 32. R1c3 {[%clk 0:00:30]} 32... Rd1 {[%clk 0:01:41.6]} 33. Rb7
{[%clk 0:00:28.5]} 33... Red8 {[%clk 0:01:36.8]} 34. Rcc7 {[%clk 0:00:20.1]}
34... R1d3+ {[%clk 0:01:16.2]} 35. Ke2 {[%clk 0:00:19.3]} 35... Rxg3 {[%clk
0:01:15.6]} 36. Kf2 {[%clk 0:00:10.8]} 36... Rg6 {[%clk 0:01:14.6]} 37. a4
{[%clk 0:00:08.6]} 37... Nd3+ {[%clk 0:01:13.8]} 38. Ke3 {[%clk 0:00:07]} 38...
Rg3+ {[%clk 0:01:11.2]} 39. Ke2 {[%clk 0:00:06]} 39... e5 {[%clk 0:01:00.5]} 40.
Be7 {[%clk 0:00:04.5]} 40... Nf4+ {[%clk 0:01:00.3]} 41. Kf2 {[%clk 0:00:04.4]}
41... Rg2+ {[%clk 0:01:00.1]} 42. Ke1 {[%clk 0:00:03.3]} 42... Re2+ {[%clk
0:00:56.9]} 0-1

[Event "*** Titled Tuesday Blitz"]
[Site "Chess.com"]
[Date "2020.03.03"]
[Round "3"]
[White "Gabix_94"]
[Black "SanchezKelvin"]
[Result "1-0"]
[WhiteElo "2684"]
[BlackElo "2335"]
[TimeControl "180+1"]
[EndTime "9:29:17 PST"]
[Termination "Gabix_94 won by resignation"]

1. d4 {[%clk 0:03:00.9]} 1... d5 {[%clk 0:02:59.2]} 2. c4 {[%clk 0:02:54.4]}
2... c6 {[%clk 0:02:59]} 3. Nf3 {[%clk 0:02:50.1]} 3... Nf6 {[%clk 0:02:58.7]}
4. Nc3 {[%clk 0:02:48.6]} 4... e6 {[%clk 0:02:58.8]} 5. Qd3 {[%clk 0:02:45.4]}
5... Nbd7 {[%clk 0:02:55.6]} 6. g3 {[%clk 0:02:44.4]} 6... Bb4 {[%clk
0:02:49.1]} 7. Bg2 {[%clk 0:02:44]} 7... Ne4 {[%clk 0:02:48.1]} 8. O-O {[%clk
0:02:42.8]} 8... f5 {[%clk 0:02:47.7]} 9. Bf4 {[%clk 0:02:39.8]} 9... O-O {[%clk
0:02:46.5]} 10. a3 {[%clk 0:02:34.5]} 10... Be7 {[%clk 0:02:15.5]} 11. b4 {[%clk
0:02:27.3]} 11... a6 {[%clk 0:01:58.6]} 12. c5 {[%clk 0:02:26.4]} 12... g5
{[%clk 0:01:35.3]} 13. Bc1 {[%clk 0:02:24.4]} 13... Qe8 {[%clk 0:01:28.9]} 14.
Qc2 {[%clk 0:02:20.4]} 14... Qg6 {[%clk 0:01:27]} 15. e3 {[%clk 0:02:18.5]}
15... h5 {[%clk 0:01:22.5]} 16. Rb1 {[%clk 0:02:15.5]} 16... g4 {[%clk
0:01:11.4]} 17. Ne1 {[%clk 0:02:12.1]} 17... h4 {[%clk 0:01:11.2]} 18. Nd3
{[%clk 0:02:11]} 18... hxg3 {[%clk 0:01:10.6]} 19. fxg3 {[%clk 0:02:11.9]} 19...
Rf7 {[%clk 0:01:08.5]} 20. Nxe4 {[%clk 0:02:08.7]} 20... dxe4 {[%clk 0:01:06.1]}
21. Nf4 {[%clk 0:02:08.7]} 21... Qh6 {[%clk 0:01:06]} 22. Rf2 {[%clk 0:02:06.3]}
22... Nf6 {[%clk 0:01:04.2]} 23. Bf1 {[%clk 0:02:05]} 23... Bd7 {[%clk
0:01:04.2]} 24. Bc4 {[%clk 0:02:03.6]} 24... Nd5 {[%clk 0:00:59.2]} 25. a4
{[%clk 0:02:01.3]} 25... Kg7 {[%clk 0:00:26.9]} 26. b5 {[%clk 0:01:58.2]} 26...
axb5 {[%clk 0:00:26.7]} 27. axb5 {[%clk 0:01:59.1]} 27... Bg5 {[%clk 0:00:14.5]}
28. bxc6 {[%clk 0:01:57]} 28... Bxc6 {[%clk 0:00:13.3]} 29. Qb3 {[%clk 0:01:54]}
29... Bxf4 {[%clk 0:00:13]} 30. exf4 {[%clk 0:01:53.7]} 30... Kf6 {[%clk
0:00:12.8]} 31. Be3 {[%clk 0:01:48.8]} 31... Rh8 {[%clk 0:00:12]} 32. Bxd5
{[%clk 0:01:48]} 32... Bxd5 {[%clk 0:00:11.9]} 33. Qb6 {[%clk 0:01:48.7]} 33...
Qf8 {[%clk 0:00:08.4]} 34. Ra1 {[%clk 0:01:45.3]} 34... Rfh7 {[%clk 0:00:07.5]}
35. Qb2 {[%clk 0:01:42.4]} 35... Rh3 {[%clk 0:00:07.2]} 36. Rg2 {[%clk
0:01:41.8]} 36... Qh6 {[%clk 0:00:07.3]} 37. Rb1 {[%clk 0:01:39]} 37... Qf8
{[%clk 0:00:07]} 38. Qa1 {[%clk 0:01:38.1]} 38... Qa8 {[%clk 0:00:07]} 39. Qc3
{[%clk 0:01:33.1]} 39... Qa6 {[%clk 0:00:05.8]} 40. Rb6 {[%clk 0:01:26.2]} 40...
Qa4 {[%clk 0:00:04.5]} 41. Rb1 {[%clk 0:01:25.3]} 41... Qa6 {[%clk 0:00:01.8]}
42. Rd2 {[%clk 0:01:24.5]} 42... Qa8 {[%clk 0:00:02.7]} 43. Qb4 {[%clk
0:01:21.9]} 43... Qe8 {[%clk 0:00:02.5]} 44. c6 {[%clk 0:01:21.5]} 44... Rxg3+
{[%clk 0:00:02.8]} 45. hxg3 {[%clk 0:01:20]} 45... Qh5 {[%clk 0:00:03.7]} 46.
Rg2 {[%clk 0:01:20.2]} 46... Qh1+ {[%clk 0:00:03.4]} 47. Kf2 {[%clk 0:01:20.7]}
47... Qd1 {[%clk 0:00:03.8]} 48. Rxd1 {[%clk 0:01:20.3]} 1-0

[Event "*** Titled Tuesday Blitz"]
[Site "Chess.com"]
[Date "2020.03.03"]
[Round "3"]
[White "Komissarov_alex"]
[Black "M1711"]
[Result "0-1"]
[WhiteElo "1767"]
[BlackElo "2542"]
[TimeControl "180+1"]
[EndTime "9:29:23 PST"]
[Termination "M1711 won on time"]

1. d4 {[%clk 0:03:00.2]} 1... a6 {[%clk 0:03:00.2]} 2. e4 {[%clk 0:02:55.9]}
2... h6 {[%clk 0:03:00.3]} 3. Bd3 {[%clk 0:02:53.3]} 3... e6 {[%clk 0:03:00]} 4.
Nf3 {[%clk 0:02:47.8]} 4... d6 {[%clk 0:02:53.1]} 5. Bf4 {[%clk 0:02:42.2]} 5...
Bd7 {[%clk 0:02:50.4]} 6. c3 {[%clk 0:02:37.6]} 6... Nc6 {[%clk 0:02:49.8]} 7.
O-O {[%clk 0:02:34.1]} 7... g5 {[%clk 0:02:46.5]} 8. Bg3 {[%clk 0:02:25.7]} 8...
Bg7 {[%clk 0:02:46.9]} 9. d5 {[%clk 0:02:23.1]} 9... Nce7 {[%clk 0:02:42.9]} 10.
Re1 {[%clk 0:02:09.6]} 10... e5 {[%clk 0:02:42.6]} 11. Nfd2 {[%clk 0:02:03]}
11... Ng6 {[%clk 0:02:42.4]} 12. Nc4 {[%clk 0:02:01.3]} 12... h5 {[%clk
0:02:39.8]} 13. f3 {[%clk 0:01:55.6]} 13... h4 {[%clk 0:02:35.7]} 14. Bf2 {[%clk
0:01:52.9]} 14... h3 {[%clk 0:02:33.4]} 15. g3 {[%clk 0:01:51.2]} 15... g4
{[%clk 0:02:29]} 16. Ne3 {[%clk 0:01:42.7]} 16... Qg5 {[%clk 0:02:06.6]} 17. Nf5
{[%clk 0:01:13.5]} 17... Bf8 {[%clk 0:01:41.5]} 18. fxg4 {[%clk 0:00:41.8]}
18... Nf6 {[%clk 0:01:37.6]} 19. Be3 {[%clk 0:00:37.9]} 19... Qxg4 {[%clk
0:01:37.1]} 20. Nd2 {[%clk 0:00:31]} 20... Qxd1 {[%clk 0:01:29.2]} 21. Raxd1
{[%clk 0:00:29]} 21... Ng4 {[%clk 0:01:18]} 22. Bg5 {[%clk 0:00:22.4]} 22... Rh5
{[%clk 0:00:55.3]} 23. Nf3 {[%clk 0:00:12.2]} 23... f6 {[%clk 0:00:49.9]} 24.
Bd2 {[%clk 0:00:11]} 24... Bxf5 {[%clk 0:00:46.1]} 25. exf5 {[%clk 0:00:08.9]}
25... Ne7 {[%clk 0:00:46.3]} 26. Be2 {[%clk 0:00:07.5]} 26... Rh8 {[%clk
0:00:37.8]} 27. Nh4 {[%clk 0:00:04]} 27... Nh6 {[%clk 0:00:37.9]} 28. Rf1 {[%clk
0:00:01.6]} 28... O-O-O {[%clk 0:00:35.7]} 0-1

[Event "*** Titled Tuesday Blitz"]
[Site "Chess.com"]
[Date "2020.03.03"]
[Round "3"]
[White "Noam_Vitenberg"]
[Black "DenishevM"]
[Result "1-0"]
[WhiteElo "2414"]
[BlackElo "2585"]
[TimeControl "180+1"]
[EndTime "9:29:26 PST"]
[Termination "Noam_Vitenberg won on time"]

1. Nf3 {[%clk 0:02:57.8]} 1... Nf6 {[%clk 0:02:57.4]} 2. c4 {[%clk 0:02:55.5]}
2... b6 {[%clk 0:02:55.7]} 3. Nc3 {[%clk 0:02:50.4]} 3... Bb7 {[%clk 0:02:55.4]}
4. g3 {[%clk 0:02:50.1]} 4... c5 {[%clk 0:02:49.7]} 5. Bg2 {[%clk 0:02:46.8]}
5... g6 {[%clk 0:02:40.9]} 6. O-O {[%clk 0:02:42]} 6... Bg7 {[%clk 0:02:40.6]}
7. Re1 {[%clk 0:02:36.7]} 7... O-O {[%clk 0:02:39.6]} 8. e4 {[%clk 0:02:36.5]}
8... d6 {[%clk 0:02:40]} 9. d4 {[%clk 0:02:36]} 9... cxd4 {[%clk 0:02:40.9]} 10.
Nxd4 {[%clk 0:02:35.8]} 10... Qc7 {[%clk 0:02:41.6]} 11. b3 {[%clk 0:02:28.5]}
11... a6 {[%clk 0:02:37.4]} 12. Bb2 {[%clk 0:02:19.9]} 12... Nbd7 {[%clk
0:02:36.1]} 13. Rc1 {[%clk 0:02:18.5]} 13... e6 {[%clk 0:02:30]} 14. Qe2 {[%clk
0:02:06.2]} 14... Rac8 {[%clk 0:02:24.1]} 15. Red1 {[%clk 0:02:05.5]} 15... Rfd8
{[%clk 0:02:18]} 16. Bh3 {[%clk 0:01:41]} 16... Re8 {[%clk 0:02:10.9]} 17. Ndb5
{[%clk 0:01:18.9]} 17... axb5 {[%clk 0:02:03.6]} 18. Nxb5 {[%clk 0:01:19.8]}
18... Qb8 {[%clk 0:01:50]} 19. Nxd6 {[%clk 0:01:18.5]} 19... Red8 {[%clk
0:01:36.6]} 20. e5 {[%clk 0:00:51]} 20... Nh5 {[%clk 0:01:09]} 21. Nxc8 {[%clk
0:00:31.5]} 21... Qxc8 {[%clk 0:01:09.9]} 22. Qe3 {[%clk 0:00:25.9]} 22... Bf8
{[%clk 0:00:39.1]} 23. Bd4 {[%clk 0:00:17.5]} 23... Nc5 {[%clk 0:00:34.6]} 24.
Rd2 {[%clk 0:00:15.8]} 24... Ne4 {[%clk 0:00:08.4]} 25. Rd3 {[%clk 0:00:15.8]}
1-0

[Event "*** Titled Tuesday Blitz"]
[Site "Chess.com"]
[Date "2020.03.03"]
[Round "3"]
[White "Arystanner"]
[Black "adricalderon8"]
[Result "0-1"]
[WhiteElo "2735"]
[BlackElo "2407"]
[TimeControl "180+1"]
[EndTime "9:29:27 PST"]
[Termination "adricalderon8 won on time"]

1. e4 {[%clk 0:03:00.9]} 1... c5 {[%clk 0:02:59.8]} 2. Nf3 {[%clk 0:03:01.2]}
2... Nc6 {[%clk 0:02:59.9]} 3. Bb5 {[%clk 0:03:00.8]} 3... g6 {[%clk 0:02:59.6]}
4. O-O {[%clk 0:03:01.1]} 4... Bg7 {[%clk 0:02:58.7]} 5. c3 {[%clk 0:03:01.8]}
5... Nf6 {[%clk 0:02:57.5]} 6. e5 {[%clk 0:03:02.4]} 6... Nd5 {[%clk 0:02:56.9]}
7. d4 {[%clk 0:03:03]} 7... cxd4 {[%clk 0:02:56.6]} 8. cxd4 {[%clk 0:03:03.9]}
8... O-O {[%clk 0:02:55.9]} 9. Nc3 {[%clk 0:03:04.2]} 9... Nc7 {[%clk
0:02:55.7]} 10. Bf4 {[%clk 0:03:02.8]} 10... Nxb5 {[%clk 0:02:52.8]} 11. Nxb5
{[%clk 0:03:02]} 11... a6 {[%clk 0:02:51.2]} 12. Nc3 {[%clk 0:03:00.6]} 12... d5
{[%clk 0:02:51.3]} 13. exd6 {[%clk 0:03:01]} 13... exd6 {[%clk 0:02:51]} 14. d5
{[%clk 0:03:01.6]} 14... Ne5 {[%clk 0:02:46.3]} 15. Nxe5 {[%clk 0:03:01.8]}
15... dxe5 {[%clk 0:02:46.6]} 16. Be3 {[%clk 0:03:02.4]} 16... f5 {[%clk
0:02:43.9]} 17. f3 {[%clk 0:03:02.5]} 17... Bd7 {[%clk 0:02:42.1]} 18. Qb3
{[%clk 0:02:57.3]} 18... b5 {[%clk 0:02:39.3]} 19. Rfd1 {[%clk 0:02:57.1]} 19...
Kh8 {[%clk 0:02:38.7]} 20. Rac1 {[%clk 0:02:55.3]} 20... Rc8 {[%clk 0:02:38.8]}
21. a4 {[%clk 0:02:54.2]} 21... e4 {[%clk 0:02:29]} 22. f4 {[%clk 0:02:44.9]}
22... Qa5 {[%clk 0:02:19.6]} 23. axb5 {[%clk 0:02:41.4]} 23... axb5 {[%clk
0:02:19.2]} 24. Na2 {[%clk 0:02:37.9]} 24... Qa4 {[%clk 0:02:14.3]} 25. Qxa4
{[%clk 0:02:21.6]} 25... bxa4 {[%clk 0:02:15.2]} 26. Bd4 {[%clk 0:01:37.8]}
26... Rxc1 {[%clk 0:02:07.2]} 27. Bxg7+ {[%clk 0:01:33.8]} 27... Kxg7 {[%clk
0:02:07.1]} 28. Rxc1 {[%clk 0:01:34.7]} 28... Kf7 {[%clk 0:01:59.8]} 29. Rc7
{[%clk 0:01:30.3]} 29... Ke7 {[%clk 0:01:59.3]} 30. Nc3 {[%clk 0:01:29.9]} 30...
Kd6 {[%clk 0:01:58.6]} 31. Ra7 {[%clk 0:01:25.6]} 31... Rb8 {[%clk 0:01:57.3]}
32. Ra6+ {[%clk 0:01:19.6]} 32... Kc5 {[%clk 0:01:55.1]} 33. Ra7 {[%clk
0:01:15.8]} 33... Be8 {[%clk 0:01:44.6]} 34. Rc7+ {[%clk 0:00:28.2]} 34... Kd6
{[%clk 0:01:40.6]} 35. Rxh7 {[%clk 0:00:28.1]} 35... Rxb2 {[%clk 0:01:40.3]} 36.
Ra7 {[%clk 0:00:26.3]} 36... e3 {[%clk 0:01:35.8]} 37. h4 {[%clk 0:00:17.2]}
37... Rc2 {[%clk 0:01:35.2]} 38. Ra6+ {[%clk 0:00:14.2]} 38... Kc5 {[%clk
0:01:33]} 39. Nxa4+ {[%clk 0:00:04.7]} 39... Bxa4 {[%clk 0:01:31.9]} 40. Kh2
{[%clk 0:00:03.8]} 40... e2 {[%clk 0:01:27.2]} 41. Re6 {[%clk 0:00:03.9]} 41...
Bb3 {[%clk 0:01:24.5]} 42. Re5 {[%clk 0:00:02.6]} 42... Bxd5 {[%clk 0:01:24.5]}
43. Kg3 {[%clk 0:00:02.7]} 43... Kd4 {[%clk 0:01:24.8]} 44. h5 {[%clk
0:00:02.4]} 44... Be4 {[%clk 0:01:24.6]} 45. Kf2 {[%clk 0:00:02.2]} 45... gxh5
{[%clk 0:01:22.7]} 46. g3 {[%clk 0:00:02.4]} 46... e1=Q+ {[%clk 0:01:21]} 47.
Kxe1 {[%clk 0:00:02.5]} 47... Rg2 {[%clk 0:01:21.7]} 0-1

[Event "*** Titled Tuesday Blitz"]
[Site "Chess.com"]
[Date "2020.03.03"]
[Round "3"]
[White "MikeSailer"]
[Black "Galileo22"]
[Result "1-0"]
[WhiteElo "2100"]
[BlackElo "2311"]
[TimeControl "180+1"]
[EndTime "9:29:35 PST"]
[Termination "MikeSailer won by resignation"]

1. Nf3 {[%clk 0:03:00.9]} 1... Nf6 {[%clk 0:02:58.9]} 2. b4 {[%clk 0:03:00.7]}
2... c5 {[%clk 0:02:47.7]} 3. bxc5 {[%clk 0:03:00]} 3... g6 {[%clk 0:02:26.7]}
4. Bb2 {[%clk 0:02:59.5]} 4... Bg7 {[%clk 0:02:26.7]} 5. e3 {[%clk 0:02:59.7]}
5... O-O {[%clk 0:02:27.1]} 6. Be2 {[%clk 0:03:00.1]} 6... Qa5 {[%clk
0:02:19.4]} 7. O-O {[%clk 0:02:54.2]} 7... Qxc5 {[%clk 0:02:06.8]} 8. Ba3 {[%clk
0:02:53.6]} 8... Qc7 {[%clk 0:02:07.2]} 9. Bxe7 {[%clk 0:02:52.4]} 9... Nd5
{[%clk 0:01:50.8]} 10. Bxf8 {[%clk 0:02:43.3]} 10... Bxa1 {[%clk 0:01:50.2]} 11.
Ba3 {[%clk 0:02:37.3]} 11... Bg7 {[%clk 0:01:48.5]} 12. c4 {[%clk 0:02:28]}
12... Nf6 {[%clk 0:01:42.6]} 13. d4 {[%clk 0:02:26.3]} 13... b6 {[%clk
0:01:38.3]} 14. Nc3 {[%clk 0:02:18.1]} 14... Ba6 {[%clk 0:01:36.1]} 15. Nb5
{[%clk 0:02:16.4]} 15... Qc8 {[%clk 0:01:22]} 16. Nd6 {[%clk 0:02:02.7]} 16...
Qd8 {[%clk 0:01:19.5]} 17. Qa4 {[%clk 0:01:56.3]} 17... Ne8 {[%clk 0:00:57.3]}
18. Ne5 {[%clk 0:01:37.6]} 18... Nxd6 {[%clk 0:00:43.6]} 19. Bxd6 {[%clk
0:01:35.9]} 19... Bb7 {[%clk 0:00:41.6]} 20. Bf3 {[%clk 0:01:18]} 20... Bxf3
{[%clk 0:00:34.1]} 21. Nxf3 {[%clk 0:01:16.2]} 21... Nc6 {[%clk 0:00:34]} 22. d5
{[%clk 0:01:00.9]} 22... Na5 {[%clk 0:00:33.5]} 23. Nd4 {[%clk 0:00:59.7]} 23...
Rc8 {[%clk 0:00:31.5]} 24. Rc1 {[%clk 0:00:58.4]} 24... Qg5 {[%clk 0:00:17.3]}
25. h3 {[%clk 0:00:54]} 25... Bxd4 {[%clk 0:00:13]} 26. Qxd7 {[%clk 0:00:53.7]}
26... Rd8 {[%clk 0:00:10.7]} 27. Qe7 {[%clk 0:00:45.3]} 27... Qxe7 {[%clk
0:00:09.4]} 28. Bxe7 {[%clk 0:00:45.4]} 28... Rd7 {[%clk 0:00:09.8]} 29. exd4
{[%clk 0:00:30.7]} 29... Rxe7 {[%clk 0:00:09.6]} 30. c5 {[%clk 0:00:31.2]} 30...
Kf8 {[%clk 0:00:05.2]} 31. d6 {[%clk 0:00:29.3]} 31... Re8 {[%clk 0:00:03.8]}
32. c6 {[%clk 0:00:28.1]} 32... Ra8 {[%clk 0:00:01.5]} 33. d5 {[%clk 0:00:26.3]}
33... Nb7 {[%clk 0:00:02.4]} 34. cxb7 {[%clk 0:00:25.9]} 34... Rd8 {[%clk
0:00:02.8]} 35. Rc8 {[%clk 0:00:24.5]} 35... Ke8 {[%clk 0:00:03.7]} 36. b8=Q
{[%clk 0:00:24.2]} 1-0

[Event "*** Titled Tuesday Blitz"]
[Site "Chess.com"]
[Date "2020.03.03"]
[Round "3"]
[White "MiroVlasenko"]
[Black "KacperPolOK"]
[Result "1-0"]
[WhiteElo "2632"]
[BlackElo "2421"]
[TimeControl "180+1"]
[EndTime "9:29:36 PST"]
[Termination "MiroVlasenko won by resignation"]

1. e4 {[%clk 0:03:00.9]} 1... e6 {[%clk 0:02:59.3]} 2. Nc3 {[%clk 0:02:57.1]}
2... d5 {[%clk 0:02:57.6]} 3. Qe2 {[%clk 0:02:56.9]} 3... d4 {[%clk 0:02:50.5]}
4. Nd1 {[%clk 0:02:56.6]} 4... c5 {[%clk 0:02:49.8]} 5. f4 {[%clk 0:02:56.4]}
5... Nc6 {[%clk 0:02:49.2]} 6. d3 {[%clk 0:02:55.9]} 6... f6 {[%clk 0:02:48.9]}
7. Nf3 {[%clk 0:02:55.4]} 7... Bd6 {[%clk 0:02:47.7]} 8. g3 {[%clk 0:02:55.1]}
8... Qc7 {[%clk 0:02:47.7]} 9. Bg2 {[%clk 0:02:54.6]} 9... Nge7 {[%clk
0:02:46.9]} 10. O-O {[%clk 0:02:54.2]} 10... O-O {[%clk 0:02:38.4]} 11. a4
{[%clk 0:02:51.2]} 11... Rb8 {[%clk 0:02:28.2]} 12. Bd2 {[%clk 0:02:48.3]} 12...
Bd7 {[%clk 0:02:26.4]} 13. Nf2 {[%clk 0:02:41.7]} 13... Be8 {[%clk 0:01:57.8]}
14. e5 {[%clk 0:02:37.8]} 14... fxe5 {[%clk 0:01:54.9]} 15. Ne4 {[%clk
0:02:37.7]} 15... Bh5 {[%clk 0:01:37.9]} 16. Nxd6 {[%clk 0:02:36.9]} 16... Qxd6
{[%clk 0:01:35.9]} 17. fxe5 {[%clk 0:02:36.5]} 17... Bxf3 {[%clk 0:01:23.1]} 18.
Rxf3 {[%clk 0:02:13.2]} 18... Qd7 {[%clk 0:01:13.5]} 19. Bh3 {[%clk 0:02:06.5]}
19... Nd5 {[%clk 0:01:06.5]} 20. Raf1 {[%clk 0:02:00.2]} 20... Rxf3 {[%clk
0:01:02.2]} 21. Rxf3 {[%clk 0:01:59.8]} 21... Rf8 {[%clk 0:01:01.2]} 22. Rxf8+
{[%clk 0:01:57.1]} 22... Kxf8 {[%clk 0:01:01.6]} 23. Qg4 {[%clk 0:01:57.2]}
23... Nxe5 {[%clk 0:00:57.7]} 24. Qh5 {[%clk 0:01:55.8]} 24... Nf7 {[%clk
0:00:48.2]} 25. Qxh7 {[%clk 0:01:54]} 25... Nf6 {[%clk 0:00:45.8]} 26. Qh4
{[%clk 0:01:46.4]} 26... Qd5 {[%clk 0:00:44.2]} 27. Bg2 {[%clk 0:01:45.7]} 27...
Qe5 {[%clk 0:00:41.5]} 28. Qf4 {[%clk 0:01:37]} 28... Qxf4 {[%clk 0:00:37.6]}
29. Bxf4 {[%clk 0:01:36]} 29... e5 {[%clk 0:00:38.1]} 30. Bd2 {[%clk 0:01:35.3]}
30... Nd6 {[%clk 0:00:35.5]} 31. b4 {[%clk 0:01:34.2]} 31... b6 {[%clk
0:00:33.2]} 32. bxc5 {[%clk 0:01:32.5]} 32... bxc5 {[%clk 0:00:32.5]} 33. Bc1
{[%clk 0:01:33]} 33... Ke7 {[%clk 0:00:13.3]} 34. Ba3 {[%clk 0:01:31]} 34... c4
{[%clk 0:00:13.8]} 35. dxc4 {[%clk 0:01:29.7]} 35... Kd7 {[%clk 0:00:14.3]} 36.
Bf1 {[%clk 0:01:26.4]} 36... Kc6 {[%clk 0:00:13.5]} 37. c5 {[%clk 0:01:25.8]}
37... Nde4 {[%clk 0:00:13.3]} 38. Bb5+ {[%clk 0:01:23.1]} 38... Kc7 {[%clk
0:00:13.7]} 39. Bb4 {[%clk 0:01:21.3]} 39... Nd7 {[%clk 0:00:11.5]} 40. Ba5+
{[%clk 0:01:20.2]} 40... Kc8 {[%clk 0:00:11.6]} 41. Ba6+ {[%clk 0:01:16.9]}
41... Kb8 {[%clk 0:00:11.7]} 42. c6 {[%clk 0:01:17.1]} 42... Nb6 {[%clk
0:00:11.6]} 43. Bd3 {[%clk 0:01:15.3]} 43... Nc5 {[%clk 0:00:11]} 44. Bb4 {[%clk
0:01:09.2]} 44... Nbxa4 {[%clk 0:00:11.3]} 45. h4 {[%clk 0:01:05.2]} 45... Kc7
{[%clk 0:00:11.4]} 46. Bb5 {[%clk 0:01:04.4]} 46... a6 {[%clk 0:00:10.3]} 47.
Ba5+ {[%clk 0:01:04.5]} 47... Kc8 {[%clk 0:00:08.8]} 48. Bc4 {[%clk 0:01:02.7]}
48... e4 {[%clk 0:00:08.4]} 49. g4 {[%clk 0:01:02.4]} 49... Nc3 {[%clk
0:00:06.8]} 50. Bb6 {[%clk 0:01:01.1]} 50... Nb5 {[%clk 0:00:05.8]} 51. Bxc5
{[%clk 0:01:00.7]} 51... Nc7 {[%clk 0:00:04.6]} 52. Bxd4 {[%clk 0:00:59.4]} 1-0

[Event "*** Titled Tuesday Blitz"]
[Site "Chess.com"]
[Date "2020.03.03"]
[Round "3"]
[White "GMKrikor"]
[Black "EugeneRougon"]
[Result "0-1"]
[WhiteElo "2839"]
[BlackElo "2698"]
[TimeControl "180+1"]
[EndTime "9:29:37 PST"]
[Termination "EugeneRougon won by resignation"]

1. Nf3 {[%clk 0:03:00.9]} 1... d5 {[%clk 0:02:56.1]} 2. c4 {[%clk 0:03:00.5]}
2... c6 {[%clk 0:02:56.5]} 3. e3 {[%clk 0:02:59.1]} 3... Nf6 {[%clk 0:02:56.5]}
4. Nc3 {[%clk 0:02:57.7]} 4... Nbd7 {[%clk 0:02:53.2]} 5. cxd5 {[%clk
0:02:33.4]} 5... cxd5 {[%clk 0:02:51.7]} 6. d4 {[%clk 0:02:34.1]} 6... e6 {[%clk
0:02:46.1]} 7. Ne5 {[%clk 0:02:34]} 7... Nxe5 {[%clk 0:02:36.8]} 8. dxe5 {[%clk
0:02:33.3]} 8... Nd7 {[%clk 0:02:37.5]} 9. f4 {[%clk 0:02:33]} 9... Bc5 {[%clk
0:02:27.4]} 10. Bd3 {[%clk 0:02:31.3]} 10... O-O {[%clk 0:01:58.1]} 11. O-O
{[%clk 0:02:30.2]} 11... f6 {[%clk 0:01:56.5]} 12. Qh5 {[%clk 0:02:20.2]} 12...
f5 {[%clk 0:01:51.7]} 13. Ne2 {[%clk 0:02:02.7]} 13... Qb6 {[%clk 0:01:43.6]}
14. Rf3 {[%clk 0:01:40.1]} 14... Rf7 {[%clk 0:01:43.2]} 15. g4 {[%clk
0:01:24.7]} 15... g6 {[%clk 0:01:39.5]} 16. Qh6 {[%clk 0:01:19.8]} 16... Nf8
{[%clk 0:01:16.7]} 17. Bd2 {[%clk 0:01:12.8]} 17... Qxb2 {[%clk 0:01:09.3]} 18.
Bc3 {[%clk 0:01:11.9]} 18... Qb6 {[%clk 0:01:06.8]} 19. Bd4 {[%clk 0:01:10.7]}
19... Bd7 {[%clk 0:01:04.7]} 20. Rg3 {[%clk 0:01:10.6]} 20... Rc8 {[%clk
0:00:56.9]} 21. Kh1 {[%clk 0:01:00.2]} 21... Bb5 {[%clk 0:00:47.3]} 22. Rb1
{[%clk 0:00:52.4]} 22... Bxd3 {[%clk 0:00:46.9]} 23. Rxb6 {[%clk 0:00:52.5]}
23... Be4+ {[%clk 0:00:30.6]} 24. Kg1 {[%clk 0:00:52.4]} 24... Bxb6 {[%clk
0:00:31.5]} 25. Bxb6 {[%clk 0:00:50.4]} 25... axb6 {[%clk 0:00:31.8]} 26. gxf5
{[%clk 0:00:45.4]} 26... exf5 {[%clk 0:00:30.4]} 27. Nd4 {[%clk 0:00:39.3]}
27... Rfc7 {[%clk 0:00:24.9]} 28. e6 {[%clk 0:00:28.9]} 28... Nxe6 {[%clk
0:00:20.3]} 29. Rxg6+ {[%clk 0:00:13.8]} 29... hxg6 {[%clk 0:00:19.2]} 30. Nxe6
{[%clk 0:00:14.7]} 30... Rc1+ {[%clk 0:00:15.3]} 31. Kf2 {[%clk 0:00:15]} 31...
R8c2+ {[%clk 0:00:13.7]} 32. Kg3 {[%clk 0:00:15.6]} 32... Rg2+ {[%clk
0:00:13.2]} 33. Kh3 {[%clk 0:00:15.2]} 33... Rxh2+ {[%clk 0:00:13.7]} 34. Kxh2
{[%clk 0:00:12.6]} 34... Rh1+ {[%clk 0:00:13.5]} 35. Kg3 {[%clk 0:00:13]} 35...
Rxh6 {[%clk 0:00:14.4]} 0-1